[Event "Titled Tuesday Blitz December 06 Late 2022"]
[White "Estrada Nieto, Julian"]
[Black "Radovanovic, Dusan"]
[WhiteFideId "5101018"]
[BlackFideId "926868"]
[WhiteElo "2195"]
[BlackElo "2337"]
[Result "1-0"]
[Round "09"]
[TimeControl "180+1"]
[Date "2022.12.07"]
[WhiteClock "0:00:05"]
[BlackClock "0:00:15"]

1. e4 {[%clk 0:03:00]}  c5 {[%clk 0:02:59]} 2. Nf3 {[%clk 0:03:01]}  d6 {[%clk 0:02:58]} 3. Bb5+ {[%clk 0:03:01]}  Nd7 {[%clk 0:02:58]} 4. d4 {[%clk 0:03:00]}  cxd4 {[%clk 0:02:58]} 5. Qxd4 {[%clk 0:03:01]}  a6 {[%clk 0:02:59]} 6. Bxd7+ {[%clk 0:03:01]}  Bxd7 {[%clk 0:03:00]} 7. Nc3 {[%clk 0:03:01]}  e5 {[%clk 0:03:00]} 8. Qd3 {[%clk 0:03:01]}  b5 {[%clk 0:03:00]} 9. Nd5 {[%clk 0:02:54]}  h6 {[%clk 0:02:52]} 10. Be3 {[%clk 0:02:53]}  Rb8 {[%clk 0:02:51]} 11. O-O {[%clk 0:02:43]}  Nf6 {[%clk 0:02:50]} 12. Nxf6+ {[%clk 0:02:38]}  Qxf6 {[%clk 0:02:50]} 13. Nd2 {[%clk 0:02:12]}  Qd8 {[%clk 0:02:38]} 14. f4 {[%clk 0:02:08]}  Be7 {[%clk 0:02:38]} 15. Nf3 {[%clk 0:02:04]}  Qc7 {[%clk 0:02:34]} 16. Rad1 {[%clk 0:01:51]}  O-O {[%clk 0:02:29]} 17. fxe5 {[%clk 0:01:38]}  Qb7 {[%clk 0:02:18]} 18. exd6 {[%clk 0:01:37]}  Bf6 {[%clk 0:02:18]} 19. e5 {[%clk 0:01:35]}  Bd8 {[%clk 0:02:17]} 20. Nd4 {[%clk 0:01:26]}  Bb6 {[%clk 0:02:05]} 21. c3 {[%clk 0:01:18]}  Rbe8 {[%clk 0:02:05]} 22. Bf4 {[%clk 0:01:18]}  Qd5 {[%clk 0:01:50]} 23. Qg3 {[%clk 0:01:18]}  Re6 {[%clk 0:01:44]} 24. Kh1 {[%clk 0:01:15]}  Rg6 {[%clk 0:01:44]} 25. Qf3 {[%clk 0:01:11]}  Qxa2 {[%clk 0:01:37]} 26. Qb7 {[%clk 0:00:38]}  Bxd4 {[%clk 0:01:28]} 27. Qxd7 {[%clk 0:00:38]}  Qxb2 {[%clk 0:01:22]} 28. Qh3 {[%clk 0:00:19]}  Bb6 {[%clk 0:00:45]} 29. Rd2 {[%clk 0:00:11]}  Qb3 {[%clk 0:00:44]} 30. Rfd1 {[%clk 0:00:10]}  a5 {[%clk 0:00:36]} 31. Qf3 {[%clk 0:00:10]}  a4 {[%clk 0:00:33]} 32. Be3 {[%clk 0:00:10]}  Ba5 {[%clk 0:00:30]} 33. Bd4 {[%clk 0:00:09]}  a3 {[%clk 0:00:25]} 34. Qe2 {[%clk 0:00:08]}  Re6 {[%clk 0:00:18]} 35. Bf2 {[%clk 0:00:07]}  f6 {[%clk 0:00:18]} 36. Bg3 {[%clk 0:00:05]}  fxe5 {[%clk 0:00:18]} 37. Bxe5 {[%clk 0:00:06]}  Rfe8 {[%clk 0:00:18]} 38. Rd5 {[%clk 0:00:05]}  Rd8 {[%clk 0:00:18]} 39. Qg4 {[%clk 0:00:05]}  Ree8 {[%clk 0:00:15]} 40. Qxg7# {[%clk 0:00:05]} 1-0


[Site "https://www.chess.com"]

[Event "Titled Tuesday Blitz December 06 Late 2022"]
[White "Figorito, Nick"]
[Black "Cuevas Araya, Walter"]
[WhiteFideId "30923689"]
[BlackFideId "3405028"]
[WhiteElo "2390"]
[BlackElo "1957"]
[Result "0-1"]
[Round "09"]
[TimeControl "180+1"]
[Date "2022.12.07"]
[WhiteClock "0:00:22"]
[BlackClock "0:00:14"]

1. Nf3 {[%clk 0:03:00]}  Nf6 {[%clk 0:02:58]} 2. g3 {[%clk 0:03:01]}  g6 {[%clk 0:02:57]} 3. Bg2 {[%clk 0:03:02]}  Bg7 {[%clk 0:02:57]} 4. O-O {[%clk 0:03:03]}  O-O {[%clk 0:02:56]} 5. c4 {[%clk 0:03:03]}  c5 {[%clk 0:02:55]} 6. d4 {[%clk 0:03:03]}  cxd4 {[%clk 0:02:55]} 7. Nxd4 {[%clk 0:03:04]}  Nc6 {[%clk 0:02:55]} 8. Nc2 {[%clk 0:03:04]}  d6 {[%clk 0:02:54]} 9. Nc3 {[%clk 0:03:04]}  Bd7 {[%clk 0:02:54]} 10. b3 {[%clk 0:03:04]}  Rc8 {[%clk 0:02:55]} 11. Bb2 {[%clk 0:03:04]}  a6 {[%clk 0:02:54]} 12. Ne3 {[%clk 0:03:02]}  Re8 {[%clk 0:02:53]} 13. Qd2 {[%clk 0:03:02]}  Qc7 {[%clk 0:02:49]} 14. Ncd5 {[%clk 0:03:01]}  Nxd5 {[%clk 0:02:46]} 15. Nxd5 {[%clk 0:03:02]}  Qd8 {[%clk 0:02:37]} 16. Bxg7 {[%clk 0:03:01]}  Kxg7 {[%clk 0:02:37]} 17. h4 {[%clk 0:03:01]}  h5 {[%clk 0:02:34]} 18. Rfd1 {[%clk 0:02:58]}  Be6 {[%clk 0:02:31]} 19. Nf4 {[%clk 0:02:53]}  Qa5 {[%clk 0:02:22]} 20. Nxe6+ {[%clk 0:02:20]}  fxe6 {[%clk 0:02:18]} 21. Bxc6 {[%clk 0:02:12]}  Qxd2 {[%clk 0:02:15]} 22. Rxd2 {[%clk 0:02:13]}  Rxc6 {[%clk 0:02:15]} 23. a4 {[%clk 0:02:09]}  Rec8 {[%clk 0:02:10]} 24. Kg2 {[%clk 0:02:03]}  Kf6 {[%clk 0:02:08]} 25. Kf3 {[%clk 0:02:02]}  Rc5 {[%clk 0:02:08]} 26. e4 {[%clk 0:02:02]}  R8c6 {[%clk 0:01:59]} 27. Ke3 {[%clk 0:01:59]}  Rb6 {[%clk 0:01:58]} 28. Rd3 {[%clk 0:01:54]}  Rb4 {[%clk 0:01:50]} 29. a5 {[%clk 0:01:41]}  b5 {[%clk 0:01:39]} 30. axb6 {[%clk 0:01:35]}  Rxb6 {[%clk 0:01:39]} 31. Ra3 {[%clk 0:01:32]}  a5 {[%clk 0:01:35]} 32. f4 {[%clk 0:01:30]}  Rb8 {[%clk 0:01:25]} 33. Rd1 {[%clk 0:01:27]}  e5 {[%clk 0:01:21]} 34. Rda1 {[%clk 0:01:13]}  Ke6 {[%clk 0:01:11]} 35. Rf1 {[%clk 0:01:02]}  a4 {[%clk 0:01:05]} 36. f5+ {[%clk 0:00:42]}  gxf5 {[%clk 0:01:04]} 37. exf5+ {[%clk 0:00:43]}  Kf6 {[%clk 0:01:03]} 38. bxa4 {[%clk 0:00:39]}  Rxc4 {[%clk 0:01:02]} 39. a5 {[%clk 0:00:40]}  Rbc8 {[%clk 0:00:45]} 40. Rfa1 {[%clk 0:00:34]}  Rc3+ {[%clk 0:00:42]} 41. Rxc3 {[%clk 0:00:28]}  Rxc3+ {[%clk 0:00:42]} 42. Ke4 {[%clk 0:00:25]}  Rxg3 {[%clk 0:00:37]} 43. a6 {[%clk 0:00:24]}  Rg8 {[%clk 0:00:38]} 44. a7 {[%clk 0:00:24]}  Ra8 {[%clk 0:00:39]} 45. Ra6 {[%clk 0:00:16]}  Kf7 {[%clk 0:00:33]} 46. Kd5 {[%clk 0:00:16]}  Kf6 {[%clk 0:00:33]} 47. Ke4 {[%clk 0:00:11]}  Kf7 {[%clk 0:00:30]} 48. Ra1 {[%clk 0:00:11]}  e6 {[%clk 0:00:28]} 49. Ra6 {[%clk 0:00:09]}  exf5+ {[%clk 0:00:25]} 50. Kxf5 {[%clk 0:00:10]}  Ke7 {[%clk 0:00:24]} 51. Ra5 {[%clk 0:00:08]}  Kd7 {[%clk 0:00:24]} 52. Ke4 {[%clk 0:00:07]}  Kc6 {[%clk 0:00:23]} 53. Ra6+ {[%clk 0:00:07]}  Kc5 {[%clk 0:00:22]} 54. Ra5+ {[%clk 0:00:07]}  Kb6 {[%clk 0:00:22]} 55. Rd5 {[%clk 0:00:08]}  Kc6 {[%clk 0:00:20]} 56. Ra5 {[%clk 0:00:08]}  Kb6 {[%clk 0:00:20]} 57. Rd5 {[%clk 0:00:08]}  Kc6 {[%clk 0:00:19]} 58. Ra5 {[%clk 0:00:08]}  Kc7 {[%clk 0:00:19]} 59. Ra6 {[%clk 0:00:08]}  Kd7 {[%clk 0:00:18]} 60. Kd5 {[%clk 0:00:09]}  Ke7 {[%clk 0:00:18]} 61. Rxd6 {[%clk 0:00:08]}  Rxa7 {[%clk 0:00:19]} 62. Re6+ {[%clk 0:00:09]}  Kf7 {[%clk 0:00:18]} 63. Rxe5 {[%clk 0:00:09]}  Ra4 {[%clk 0:00:19]} 64. Rxh5 {[%clk 0:00:08]}  Ra5+ {[%clk 0:00:15]} 65. Kd6 {[%clk 0:00:09]}  Rxh5 {[%clk 0:00:16]} 66. Kd7 {[%clk 0:00:08]}  Rxh4 {[%clk 0:00:17]} 67. Kd8 {[%clk 0:00:09]}  Rd4+ {[%clk 0:00:17]} 68. Kc7 {[%clk 0:00:10]}  Ke6 {[%clk 0:00:16]} 69. Kc6 {[%clk 0:00:11]}  Rd5 {[%clk 0:00:15]} 70. Kb6 {[%clk 0:00:11]}  Kd6 {[%clk 0:00:15]} 71. Kb7 {[%clk 0:00:11]}  Rc5 {[%clk 0:00:15]} 72. Kb6 {[%clk 0:00:11]}  Kd5 {[%clk 0:00:15]} 73. Ka6 {[%clk 0:00:11]}  Kc6 {[%clk 0:00:15]} 74. Ka7 {[%clk 0:00:12]}  Rb5 {[%clk 0:00:15]} 75. Ka6 {[%clk 0:00:12]}  Rb1 {[%clk 0:00:16]} 76. Ka5 {[%clk 0:00:13]}  Kc7 {[%clk 0:00:16]} 77. Ka4 {[%clk 0:00:14]}  Rb2 {[%clk 0:00:16]} 78. Ka3 {[%clk 0:00:15]}  Rb8 {[%clk 0:00:16]} 79. Ka4 {[%clk 0:00:15]}  Kc6 {[%clk 0:00:17]} 80. Ka3 {[%clk 0:00:16]}  Rb7 {[%clk 0:00:16]} 81. Ka2 {[%clk 0:00:17]}  Kc5 {[%clk 0:00:15]} 82. Ka1 {[%clk 0:00:18]}  Kc4 {[%clk 0:00:16]} 83. Ka2 {[%clk 0:00:19]}  Rb8 {[%clk 0:00:15]} 84. Ka1 {[%clk 0:00:20]}  Kc3 {[%clk 0:00:15]} 85. Ka2 {[%clk 0:00:21]}  Rb6 {[%clk 0:00:15]} 86. Ka1 {[%clk 0:00:21]}  Kc2 {[%clk 0:00:15]} 87. Ka2 {[%clk 0:00:22]}  Ra6# {[%clk 0:00:14]} 0-1


[Site "https://www.chess.com"]

[Event "Titled Tuesday Blitz December 06 Late 2022"]
[White "Gerbelli Neto, Eduardo"]
[Black "Antonio, Jorge Carlos"]
[WhiteFideId "2103281"]
[BlackFideId "113190"]
[WhiteElo "2178"]
[BlackElo "2247"]
[Result "1-0"]
[Round "09"]
[TimeControl "180+1"]
[Date "2022.12.07"]
[WhiteClock "0:01:30"]
[BlackClock "0:02:11"]

1. e4 {[%clk 0:03:00]}  e5 {[%clk 0:02:58]} 2. Nf3 {[%clk 0:03:00]}  Nc6 {[%clk 0:02:57]} 3. d4 {[%clk 0:03:00]}  exd4 {[%clk 0:02:56]} 4. Nxd4 {[%clk 0:03:00]}  Nf6 {[%clk 0:02:51]} 5. Nc3 {[%clk 0:03:00]}  Bb4 {[%clk 0:02:47]} 6. Nxc6 {[%clk 0:03:00]}  bxc6 {[%clk 0:02:44]} 7. Bd3 {[%clk 0:03:00]}  d5 {[%clk 0:02:41]} 8. e5 {[%clk 0:03:00]}  Ng4 {[%clk 0:02:37]} 9. Bf4 {[%clk 0:02:50]}  O-O {[%clk 0:02:31]} 10. O-O {[%clk 0:02:42]}  f6 {[%clk 0:02:27]} 11. exf6 {[%clk 0:02:37]}  Qxf6 {[%clk 0:02:24]} 12. Bg3 {[%clk 0:02:33]}  Bd6 {[%clk 0:02:20]} 13. Be2 {[%clk 0:01:53]}  Ne5 {[%clk 0:02:11]} 14. Qd2 {[%clk 0:01:30]} 1-0


[Site "https://www.chess.com"]

[Event "Titled Tuesday Blitz December 06 Late 2022"]
[White "Goncalves, Davi Sulzbacher"]
[Black "Ankerst, Mihael"]
[WhiteFideId "2154510"]
[BlackFideId "14602369"]
[WhiteElo "2182"]
[BlackElo "2386"]
[Result "1/2-1/2"]
[Round "09"]
[TimeControl "180+1"]
[Date "2022.12.07"]
[WhiteClock "0:00:14"]
[BlackClock "0:00:04"]

1. d4 {[%clk 0:02:56]}  Nf6 {[%clk 0:02:59]} 2. c4 {[%clk 0:02:56]}  g6 {[%clk 0:02:59]} 3. Nc3 {[%clk 0:02:56]}  Bg7 {[%clk 0:03:00]} 4. e4 {[%clk 0:02:56]}  d6 {[%clk 0:03:00]} 5. f3 {[%clk 0:02:57]}  O-O {[%clk 0:03:00]} 6. Be3 {[%clk 0:02:58]}  c5 {[%clk 0:03:01]} 7. d5 {[%clk 0:02:56]}  e6 {[%clk 0:03:01]} 8. Bd3 {[%clk 0:02:56]}  a6 {[%clk 0:03:01]} 9. Nge2 {[%clk 0:02:56]}  Nbd7 {[%clk 0:03:02]} 10. O-O {[%clk 0:02:57]}  Ne5 {[%clk 0:03:02]} 11. Nf4 {[%clk 0:02:38]}  b5 {[%clk 0:03:00]} 12. dxe6 {[%clk 0:02:36]}  fxe6 {[%clk 0:02:55]} 13. cxb5 {[%clk 0:02:36]}  Nxd3 {[%clk 0:02:54]} 14. Qxd3 {[%clk 0:02:35]}  axb5 {[%clk 0:02:55]} 15. Qxb5 {[%clk 0:02:32]}  Ba6 {[%clk 0:02:54]} 16. Qb3 {[%clk 0:02:32]}  Bxf1 {[%clk 0:02:33]} 17. Nxe6 {[%clk 0:02:28]}  Qb8 {[%clk 0:02:21]} 18. Qxb8 {[%clk 0:01:53]}  Rfxb8 {[%clk 0:02:19]} 19. Kxf1 {[%clk 0:01:50]}  Rxb2 {[%clk 0:02:18]} 20. Nxg7 {[%clk 0:01:48]}  Kxg7 {[%clk 0:02:07]} 21. Bf4 {[%clk 0:01:48]}  Rc2 {[%clk 0:01:58]} 22. Nb5 {[%clk 0:01:47]}  d5 {[%clk 0:01:51]} 23. Nc7 {[%clk 0:01:37]}  Ra4 {[%clk 0:01:47]} 24. Be5 {[%clk 0:01:28]}  Kf7 {[%clk 0:01:46]} 25. Bxf6 {[%clk 0:01:26]}  Kxf6 {[%clk 0:01:46]} 26. Nxd5+ {[%clk 0:01:27]}  Ke5 {[%clk 0:01:45]} 27. Nb6 {[%clk 0:01:19]}  Raxa2 {[%clk 0:01:43]} 28. Nd7+ {[%clk 0:01:05]}  Kd4 {[%clk 0:01:37]} 29. Rd1+ {[%clk 0:00:37]}  Ke3 {[%clk 0:01:06]} 30. Ne5 {[%clk 0:00:35]}  Rf2+ {[%clk 0:01:03]} 31. Kg1 {[%clk 0:00:36]}  Rxg2+ {[%clk 0:01:03]} 32. Kh1 {[%clk 0:00:36]}  Rxh2+ {[%clk 0:01:02]} 33. Kg1 {[%clk 0:00:36]}  Rag2+ {[%clk 0:01:02]} 34. Kf1 {[%clk 0:00:36]}  Rh1+ {[%clk 0:01:00]} 35. Kxg2 {[%clk 0:00:36]}  Rxd1 {[%clk 0:01:00]} 36. Ng4+ {[%clk 0:00:35]}  Kd4 {[%clk 0:00:57]} 37. e5 {[%clk 0:00:35]}  Kd5 {[%clk 0:00:56]} 38. Ne3+ {[%clk 0:00:35]}  Kxe5 {[%clk 0:00:56]} 39. Nxd1 {[%clk 0:00:36]}  Kf4 {[%clk 0:00:36]} 40. Kf2 {[%clk 0:00:33]}  g5 {[%clk 0:00:34]} 41. Nb2 {[%clk 0:00:32]}  g4 {[%clk 0:00:25]} 42. Nd3+ {[%clk 0:00:32]}  Kf5 {[%clk 0:00:25]} 43. Nxc5 {[%clk 0:00:32]}  gxf3 {[%clk 0:00:19]} 44. Nd3 {[%clk 0:00:32]}  Ke4 {[%clk 0:00:17]} 45. Ne1 {[%clk 0:00:33]}  Kf4 {[%clk 0:00:17]} 46. Nc2 {[%clk 0:00:33]}  Kg4 {[%clk 0:00:17]} 47. Ne3+ {[%clk 0:00:34]}  Kf4 {[%clk 0:00:16]} 48. Nf1 {[%clk 0:00:34]}  h6 {[%clk 0:00:14]} 49. Ng3 {[%clk 0:00:33]}  Kg4 {[%clk 0:00:13]} 50. Ne4 {[%clk 0:00:33]}  Kf4 {[%clk 0:00:13]} 51. Nc5 {[%clk 0:00:33]}  Kg4 {[%clk 0:00:13]} 52. Nd3 {[%clk 0:00:33]}  h5 {[%clk 0:00:12]} 53. Nc1 {[%clk 0:00:33]}  Kf4 {[%clk 0:00:12]} 54. Nd3+ {[%clk 0:00:33]}  Kg4 {[%clk 0:00:12]} 55. Ne1 {[%clk 0:00:32]}  h4 {[%clk 0:00:11]} 56. Nd3 {[%clk 0:00:31]}  h3 {[%clk 0:00:11]} 57. Ne5+ {[%clk 0:00:29]}  Kf4 {[%clk 0:00:11]} 58. Nd3+ {[%clk 0:00:29]}  Ke4 {[%clk 0:00:09]} 59. Nc5+ {[%clk 0:00:25]}  Kf4 {[%clk 0:00:03]} 60. Nd3+ {[%clk 0:00:21]}  Ke4 {[%clk 0:00:04]} 61. Nc5+ {[%clk 0:00:17]}  Kf4 {[%clk 0:00:04]} 62. Nd3+ {[%clk 0:00:14]} 1/2-1/2


[Site "https://www.chess.com"]

[Event "Titled Tuesday Blitz December 06 Late 2022"]
[White "Jobava, Baadur"]
[Black "Pultinevicius, Paulius"]
[WhiteFideId "13601520"]
[BlackFideId "12809390"]
[WhiteElo "2582"]
[BlackElo "2486"]
[Result "0-1"]
[Round "09"]
[TimeControl "180+1"]
[Date "2022.12.06"]
[WhiteClock "0:00:01"]
[BlackClock "0:00:22"]

1. e4 {[%clk 0:02:47]}  c5 {[%clk 0:02:53]} 2. c4 {[%clk 0:02:45]}  g6 {[%clk 0:02:52]} 3. Nc3 {[%clk 0:02:39]}  Bg7 {[%clk 0:02:52]} 4. g3 {[%clk 0:02:40]}  Nc6 {[%clk 0:02:52]} 5. Bg2 {[%clk 0:02:40]}  d6 {[%clk 0:02:49]} 6. Nge2 {[%clk 0:02:40]}  e6 {[%clk 0:02:46]} 7. O-O {[%clk 0:02:38]}  Nge7 {[%clk 0:02:47]} 8. d3 {[%clk 0:02:37]}  O-O {[%clk 0:02:46]} 9. Be3 {[%clk 0:02:36]}  Nd4 {[%clk 0:02:45]} 10. f4 {[%clk 0:02:35]}  Nec6 {[%clk 0:02:45]} 11. h3 {[%clk 0:02:30]}  Rb8 {[%clk 0:02:42]} 12. Rb1 {[%clk 0:02:29]}  a6 {[%clk 0:02:41]} 13. Kh2 {[%clk 0:02:28]}  b5 {[%clk 0:02:40]} 14. b3 {[%clk 0:02:26]}  Bd7 {[%clk 0:02:38]} 15. Qd2 {[%clk 0:02:24]}  Qa5 {[%clk 0:02:37]} 16. Rfd1 {[%clk 0:01:44]}  Rfd8 {[%clk 0:02:35]} 17. Bf2 {[%clk 0:01:38]}  b4 {[%clk 0:02:30]} 18. Nxd4 {[%clk 0:01:25]}  bxc3 {[%clk 0:02:12]} 19. Nxc6 {[%clk 0:01:26]}  Bxc6 {[%clk 0:02:12]} 20. Qc2 {[%clk 0:01:27]}  Bd4 {[%clk 0:02:00]} 21. Be1 {[%clk 0:01:24]}  d5 {[%clk 0:01:56]} 22. cxd5 {[%clk 0:01:16]}  exd5 {[%clk 0:01:55]} 23. e5 {[%clk 0:01:17]}  f6 {[%clk 0:01:51]} 24. exf6 {[%clk 0:01:10]}  Bxf6 {[%clk 0:01:52]} 25. Rbc1 {[%clk 0:01:09]}  Re8 {[%clk 0:01:37]} 26. Bxc3 {[%clk 0:01:09]}  Bxc3 {[%clk 0:01:37]} 27. Qxc3 {[%clk 0:01:10]}  Qxa2 {[%clk 0:01:38]} 28. Rd2 {[%clk 0:01:08]}  Qxb3 {[%clk 0:01:36]} 29. Qxc5 {[%clk 0:01:07]}  Ba8 {[%clk 0:01:30]} 30. Qd4 {[%clk 0:01:02]}  Qb4 {[%clk 0:01:14]} 31. Bxd5+ {[%clk 0:01:01]}  Bxd5 {[%clk 0:01:15]} 32. Qxd5+ {[%clk 0:01:02]}  Kh8 {[%clk 0:01:16]} 33. Ra2 {[%clk 0:00:48]}  Rbd8 {[%clk 0:01:13]} 34. Qc4 {[%clk 0:00:48]}  Qd6 {[%clk 0:01:07]} 35. Qc3+ {[%clk 0:00:37]}  Kg8 {[%clk 0:01:07]} 36. Qc4+ {[%clk 0:00:31]}  Kh8 {[%clk 0:01:07]} 37. Rc3 {[%clk 0:00:28]}  Re1 {[%clk 0:00:57]} 38. Kg2 {[%clk 0:00:18]}  Rde8 {[%clk 0:00:55]} 39. Rcc2 {[%clk 0:00:16]}  Qb6 {[%clk 0:00:44]} 40. Qc3+ {[%clk 0:00:14]}  Kg8 {[%clk 0:00:44]} 41. Qc4+ {[%clk 0:00:15]}  Kh8 {[%clk 0:00:44]} 42. d4 {[%clk 0:00:04]}  Qb1 {[%clk 0:00:41]} 43. Kf3 {[%clk 0:00:01]}  R1e3+ {[%clk 0:00:29]} 44. Kg4 {[%clk 0:00:01]}  Qe1 {[%clk 0:00:22]} 0-1


[Site "https://www.chess.com"]

[Event "Titled Tuesday Blitz December 06 Late 2022"]
[White "Kamsky, Gata"]
[Black "Boyer, Mahel"]
[WhiteFideId "2000024"]
[BlackFideId "45102422"]
[WhiteElo "2666"]
[BlackElo "2455"]
[Result "1-0"]
[Round "09"]
[TimeControl "180+1"]
[Date "2022.12.06"]
[WhiteClock "0:00:19"]
[BlackClock "0:00:38"]

1. d4 {[%clk 0:03:00]}  d6 {[%clk 0:02:58]} 2. Nf3 {[%clk 0:02:59]}  e5 {[%clk 0:02:57]} 3. dxe5 {[%clk 0:02:58]}  Nc6 {[%clk 0:02:58]} 4. e4 {[%clk 0:02:53]}  Bg4 {[%clk 0:02:58]} 5. Bb5 {[%clk 0:02:50]}  dxe5 {[%clk 0:02:57]} 6. Bxc6+ {[%clk 0:02:48]}  bxc6 {[%clk 0:02:57]} 7. Qxd8+ {[%clk 0:02:44]}  Rxd8 {[%clk 0:02:58]} 8. Be3 {[%clk 0:02:38]}  a6 {[%clk 0:02:58]} 9. Nbd2 {[%clk 0:02:37]}  f6 {[%clk 0:02:58]} 10. Nc4 {[%clk 0:02:27]}  Ne7 {[%clk 0:02:55]} 11. Nfd2 {[%clk 0:02:26]}  Ng6 {[%clk 0:02:45]} 12. f3 {[%clk 0:02:22]}  Be6 {[%clk 0:02:44]} 13. g3 {[%clk 0:02:22]}  h5 {[%clk 0:02:41]} 14. h4 {[%clk 0:02:19]}  Be7 {[%clk 0:02:41]} 15. Ke2 {[%clk 0:02:16]}  Nf8 {[%clk 0:02:40]} 16. Na5 {[%clk 0:02:11]}  Bd7 {[%clk 0:02:40]} 17. c3 {[%clk 0:02:00]}  Ne6 {[%clk 0:02:39]} 18. Ndc4 {[%clk 0:01:56]}  c5 {[%clk 0:02:38]} 19. a4 {[%clk 0:01:55]}  Rb8 {[%clk 0:02:37]} 20. b3 {[%clk 0:01:50]}  Kf7 {[%clk 0:02:36]} 21. Rad1 {[%clk 0:01:46]}  Rhd8 {[%clk 0:02:36]} 22. Rd5 {[%clk 0:01:45]}  Be8 {[%clk 0:02:31]} 23. Rhd1 {[%clk 0:01:43]}  Rdc8 {[%clk 0:02:17]} 24. R5d2 {[%clk 0:01:40]}  Rd8 {[%clk 0:02:05]} 25. Rxd8 {[%clk 0:01:20]}  Bxd8 {[%clk 0:02:06]} 26. f4 {[%clk 0:01:16]}  exf4 {[%clk 0:02:04]} 27. gxf4 {[%clk 0:01:15]}  Be7 {[%clk 0:02:04]} 28. f5 {[%clk 0:01:14]}  Nd8 {[%clk 0:02:02]} 29. Bf4 {[%clk 0:01:14]}  Nc6 {[%clk 0:02:00]} 30. Bxc7 {[%clk 0:01:09]}  Rc8 {[%clk 0:02:00]} 31. Bf4 {[%clk 0:01:03]}  Nxa5 {[%clk 0:02:00]} 32. Nxa5 {[%clk 0:01:02]}  c4 {[%clk 0:01:58]} 33. Nxc4 {[%clk 0:00:54]}  Bxa4 {[%clk 0:01:58]} 34. Nb6 {[%clk 0:00:54]}  Bb5+ {[%clk 0:01:55]} 35. c4 {[%clk 0:00:54]}  Rc6 {[%clk 0:01:38]} 36. Nd5 {[%clk 0:00:53]}  Bxc4+ {[%clk 0:01:32]} 37. bxc4 {[%clk 0:00:53]}  Rxc4 {[%clk 0:01:33]} 38. Kd3 {[%clk 0:00:52]}  Ra4 {[%clk 0:01:29]} 39. Rb1 {[%clk 0:00:48]}  Ra3+ {[%clk 0:01:27]} 40. Ke2 {[%clk 0:00:36]}  Bc5 {[%clk 0:01:24]} 41. Rb7+ {[%clk 0:00:34]}  Kg8 {[%clk 0:01:23]} 42. e5 {[%clk 0:00:31]}  fxe5 {[%clk 0:01:20]} 43. Bxe5 {[%clk 0:00:30]}  Bf8 {[%clk 0:01:21]} 44. f6 {[%clk 0:00:29]}  Ra5 {[%clk 0:01:17]} 45. Rd7 {[%clk 0:00:29]}  Ra4 {[%clk 0:00:55]} 46. Kf3 {[%clk 0:00:26]}  Rg4 {[%clk 0:00:51]} 47. f7+ {[%clk 0:00:23]}  Kh7 {[%clk 0:00:49]} 48. Bd6 {[%clk 0:00:22]}  Bxd6 {[%clk 0:00:38]} 49. Rxd6 {[%clk 0:00:21]}  Rg1 {[%clk 0:00:39]} 50. Nf6+ {[%clk 0:00:21]}  Kg6 {[%clk 0:00:37]} 51. f8=Q {[%clk 0:00:20]}  Rf1+ {[%clk 0:00:37]} 52. Kg2 {[%clk 0:00:20]}  Rxf6 {[%clk 0:00:38]} 53. Rxf6+ {[%clk 0:00:19]}  gxf6 {[%clk 0:00:38]} 54. Kf3 {[%clk 0:00:19]} 1-0


[Site "https://www.chess.com"]

[Event "Titled Tuesday Blitz December 06 Late 2022"]
[White "Kavutskiy, Konstantin"]
[Black "Tomaszewski, Kacper"]
[WhiteFideId "2026384"]
[BlackFideId "1127373"]
[WhiteElo "2386"]
[BlackElo "2211"]
[Result "1-0"]
[Round "09"]
[TimeControl "180+1"]
[Date "2022.12.07"]
[WhiteClock "0:00:30"]
[BlackClock "0:00:04"]

1. d4 {[%clk 0:03:00]}  d5 {[%clk 0:02:59]} 2. c4 {[%clk 0:03:00]}  e6 {[%clk 0:02:59]} 3. Nc3 {[%clk 0:03:00]}  Nf6 {[%clk 0:03:00]} 4. cxd5 {[%clk 0:02:59]}  exd5 {[%clk 0:03:00]} 5. Bg5 {[%clk 0:02:58]}  c6 {[%clk 0:03:00]} 6. e3 {[%clk 0:02:58]}  Bf5 {[%clk 0:03:00]} 7. Qf3 {[%clk 0:02:56]}  Bc8 {[%clk 0:03:00]} 8. Bxf6 {[%clk 0:02:49]}  Qxf6 {[%clk 0:03:01]} 9. Qxf6 {[%clk 0:02:48]}  gxf6 {[%clk 0:03:02]} 10. Bd3 {[%clk 0:02:47]}  Bd6 {[%clk 0:03:00]} 11. Nge2 {[%clk 0:02:47]}  Nd7 {[%clk 0:03:01]} 12. Ng3 {[%clk 0:02:45]}  Nb6 {[%clk 0:02:49]} 13. Rc1 {[%clk 0:02:39]}  Be6 {[%clk 0:02:43]} 14. b3 {[%clk 0:02:34]}  Ba3 {[%clk 0:02:37]} 15. Rb1 {[%clk 0:02:31]}  a5 {[%clk 0:02:31]} 16. Kd2 {[%clk 0:02:19]}  Kd7 {[%clk 0:02:24]} 17. f4 {[%clk 0:02:15]}  Kc7 {[%clk 0:02:17]} 18. Rhg1 {[%clk 0:02:05]}  Bb4 {[%clk 0:01:54]} 19. Rbc1 {[%clk 0:01:59]}  a4 {[%clk 0:01:53]} 20. Ke2 {[%clk 0:01:48]}  Bxc3 {[%clk 0:01:41]} 21. Rxc3 {[%clk 0:01:47]}  axb3 {[%clk 0:01:42]} 22. axb3 {[%clk 0:01:46]}  Ra2+ {[%clk 0:01:43]} 23. Rc2 {[%clk 0:01:45]}  Bg4+ {[%clk 0:01:35]} 24. Kd2 {[%clk 0:01:44]}  Ra3 {[%clk 0:01:32]} 25. h3 {[%clk 0:01:40]}  Bd7 {[%clk 0:01:30]} 26. Rb2 {[%clk 0:01:33]}  Rg8 {[%clk 0:01:26]} 27. Nh5 {[%clk 0:01:32]}  Bxh3 {[%clk 0:01:23]} 28. Nxf6 {[%clk 0:01:28]}  Rxg2+ {[%clk 0:01:21]} 29. Rxg2 {[%clk 0:01:28]}  Bxg2 {[%clk 0:01:22]} 30. Nxh7 {[%clk 0:01:26]}  Nd7 {[%clk 0:01:03]} 31. Kc3 {[%clk 0:01:23]}  Bf3 {[%clk 0:00:51]} 32. Ng5 {[%clk 0:01:20]}  Bh5 {[%clk 0:00:50]} 33. Rh2 {[%clk 0:01:20]}  Bd1 {[%clk 0:00:49]} 34. Rb2 {[%clk 0:01:06]}  Bh5 {[%clk 0:00:48]} 35. Kb4 {[%clk 0:01:03]}  Ra1 {[%clk 0:00:43]} 36. Rh2 {[%clk 0:01:03]}  Bg6 {[%clk 0:00:40]} 37. f5 {[%clk 0:01:02]}  Rg1 {[%clk 0:00:35]} 38. Nh3 {[%clk 0:00:55]}  Rg3 {[%clk 0:00:20]} 39. fxg6 {[%clk 0:00:54]}  fxg6 {[%clk 0:00:20]} 40. Nf4 {[%clk 0:00:48]}  Rxe3 {[%clk 0:00:20]} 41. Bxg6 {[%clk 0:00:46]}  b6 {[%clk 0:00:14]} 42. Rh7 {[%clk 0:00:45]}  c5+ {[%clk 0:00:13]} 43. Ka4 {[%clk 0:00:40]}  Kd6 {[%clk 0:00:11]} 44. Bf5 {[%clk 0:00:34]}  Nf6 {[%clk 0:00:07]} 45. Rh6 {[%clk 0:00:32]}  b5+ {[%clk 0:00:03]} 46. Ka5 {[%clk 0:00:30]}  Ke7 {[%clk 0:00:02]} 47. Rxf6 {[%clk 0:00:30]}  Kxf6 {[%clk 0:00:02]} 48. Nxd5+ {[%clk 0:00:29]}  Kxf5 {[%clk 0:00:03]} 49. Nxe3+ {[%clk 0:00:30]}  Ke4 {[%clk 0:00:04]} 50. dxc5 {[%clk 0:00:30]} 1-0


[Site "https://www.chess.com"]